[Event "Early-Titled-Tuesday-Blitz-April-16-2024"]
[Site "Chess.com"]
[Date "2024.04.16"]
[Round "2"]
[White "RafalBRC"]
[Black "DanylaBagrov"]
[Result "0-1"]
[WhiteElo "2195"]
[BlackElo "2476"]
[TimeControl "180+1"]
[EndTime "8:15:39 PDT"]
[Termination "DanylaBagrov won by resignation"]

1. Nf3 {[%clk 0:02:10.6]} 1... f5 {[%clk 0:02:52.5]} 2. g3 {[%clk 0:02:11.5]}
2... Nf6 {[%clk 0:02:48.2]} 3. h4 {[%clk 0:02:12.4]} 3... d6 {[%clk 0:02:45]} 4.
d3 {[%clk 0:02:11.2]} 4... e5 {[%clk 0:02:43.3]} 5. Bh3 {[%clk 0:02:10.6]} 5...
Be7 {[%clk 0:02:39.4]} 6. Nbd2 {[%clk 0:02:09.7]} 6... O-O {[%clk 0:02:39.1]} 7.
b3 {[%clk 0:02:10]} 7... f4 {[%clk 0:02:37.2]} 8. Nf1 {[%clk 0:02:09]} 8... Bxh3
{[%clk 0:02:36]} 9. Rxh3 {[%clk 0:02:09.1]} 9... e4 {[%clk 0:02:20.1]} 10. dxe4
{[%clk 0:02:04.2]} 10... fxg3 {[%clk 0:02:20.4]} 11. Rxg3 {[%clk 0:01:59.1]}
11... Nc6 {[%clk 0:02:19.7]} 12. Bb2 {[%clk 0:01:58]} 12... Rf7 {[%clk
0:02:16.4]} 13. e5 {[%clk 0:01:46.2]} 13... dxe5 {[%clk 0:02:12.4]} 14. Nxe5
{[%clk 0:01:46.1]} 14... Bb4+ {[%clk 0:01:53.5]} 15. Nd2 {[%clk 0:01:40.7]}
15... Nxe5 {[%clk 0:01:44.3]} 16. Bxe5 {[%clk 0:01:34.3]} 16... Bxd2+ {[%clk
0:01:22]} 17. Qxd2 {[%clk 0:01:34.4]} 17... Qxd2+ {[%clk 0:01:22.9]} 18. Kxd2
{[%clk 0:01:34.9]} 18... Ne4+ {[%clk 0:01:23.5]} 19. Ke3 {[%clk 0:01:35.3]}
19... Nxg3 {[%clk 0:01:23.6]} 20. Bxg3 {[%clk 0:01:36.2]} 20... Re8+ {[%clk
0:01:21.6]} 21. Kd3 {[%clk 0:01:36.4]} 21... Rd7+ {[%clk 0:01:21.9]} 22. Kc3
{[%clk 0:01:34.2]} 22... Rxe2 {[%clk 0:01:22.1]} 23. Rg1 {[%clk 0:01:34.1]}
23... Rdd2 {[%clk 0:01:16]} 24. Be5 {[%clk 0:01:28.2]} 24... Rxc2+ {[%clk
0:01:15.5]} 25. Kd3 {[%clk 0:01:28.3]} 25... g6 {[%clk 0:01:10.6]} 26. f4 {[%clk
0:01:21.5]} 26... Rxa2 {[%clk 0:01:06.8]} 27. h5 {[%clk 0:01:17.9]} 27... Rad2+
{[%clk 0:01:01.5]} 28. Kc3 {[%clk 0:01:17.8]} 28... Rg2 {[%clk 0:01:01.3]} 29.
Rh1 {[%clk 0:01:15]} 29... Rd7 {[%clk 0:00:55.5]} 30. hxg6 {[%clk 0:01:13.6]}
30... Rxg6 {[%clk 0:00:56.4]} 31. f5 {[%clk 0:01:13.4]} 31... Rg5 {[%clk
0:00:55.7]} 32. Rf1 {[%clk 0:01:05.5]} 32... Rd5 {[%clk 0:00:55.9]} 33. Bxc7
{[%clk 0:01:03.5]} 33... Rc5+ {[%clk 0:00:56.1]} 34. Kd4 {[%clk 0:01:03.6]}
34... Rxc7 {[%clk 0:00:56.7]} 0-1

[Event "Early-Titled-Tuesday-Blitz-April-16-2024"]
[Site "Chess.com"]
[Date "2024.04.16"]
[Round "2"]
[White "viktorskliarov"]
[Black "shimastream"]
[Result "0-1"]
[WhiteElo "2622"]
[BlackElo "3036"]
[TimeControl "180+1"]
[EndTime "8:15:40 PDT"]
[Termination "shimastream won by resignation"]

1. e4 {[%clk 0:03:00.9]} 1... b6 {[%clk 0:03:00.9]} 2. d4 {[%clk 0:02:58.7]}
2... Bb7 {[%clk 0:03:00.4]} 3. Bd3 {[%clk 0:02:59.1]} 3... e6 {[%clk 0:03:00.4]}
4. Nf3 {[%clk 0:02:57.1]} 4... c5 {[%clk 0:02:59.9]} 5. c3 {[%clk 0:02:56.1]}
5... Nf6 {[%clk 0:03:00]} 6. Qe2 {[%clk 0:02:54.3]} 6... d5 {[%clk 0:02:59.7]}
7. e5 {[%clk 0:02:53.8]} 7... Nfd7 {[%clk 0:02:59.7]} 8. O-O {[%clk 0:02:53.3]}
8... Nc6 {[%clk 0:02:59.9]} 9. a3 {[%clk 0:02:53.4]} 9... Be7 {[%clk 0:02:59.9]}
10. b4 {[%clk 0:02:47.6]} 10... g5 {[%clk 0:02:59.3]} 11. Be3 {[%clk 0:02:33.2]}
11... h5 {[%clk 0:02:57.1]} 12. Nbd2 {[%clk 0:02:21.1]} 12... g4 {[%clk
0:02:56.1]} 13. Ne1 {[%clk 0:02:20.8]} 13... Qc7 {[%clk 0:02:56.7]} 14. f3
{[%clk 0:01:59.1]} 14... O-O-O {[%clk 0:02:27.3]} 15. fxg4 {[%clk 0:01:36.4]}
15... f6 {[%clk 0:02:27.3]} 16. b5 {[%clk 0:01:15.9]} 16... Ncxe5 {[%clk
0:02:24.5]} 17. dxe5 {[%clk 0:01:11.8]} 17... fxe5 {[%clk 0:02:25.4]} 18. Ne4
{[%clk 0:00:23.2]} 18... Rdg8 {[%clk 0:02:07.7]} 19. g5 {[%clk 0:00:20.4]} 19...
c4 {[%clk 0:02:00.9]} 20. Bc2 {[%clk 0:00:18.6]} 20... dxe4 {[%clk 0:02:00.2]}
21. Rd1 {[%clk 0:00:15.1]} 21... Nc5 {[%clk 0:01:52.4]} 22. Qxc4 {[%clk
0:00:14.3]} 22... Bxg5 {[%clk 0:01:52.6]} 23. Bxg5 {[%clk 0:00:11.2]} 23... Rxg5
{[%clk 0:01:53.5]} 24. Rf6 {[%clk 0:00:05.7]} 24... e3 {[%clk 0:01:44.3]} 25.
Qe2 {[%clk 0:00:05.1]} 25... Rhg8 {[%clk 0:01:43.2]} 26. Qxe3 {[%clk 0:00:04.5]}
26... Bxg2 {[%clk 0:01:41]} 27. Qxg5 {[%clk 0:00:04.7]} 27... Rxg5 {[%clk
0:01:39.1]} 28. Rf8+ {[%clk 0:00:05.1]} 28... Kb7 {[%clk 0:01:39.8]} 29. Nxg2
{[%clk 0:00:05.6]} 29... Rxg2+ {[%clk 0:01:38.3]} 30. Kxg2 {[%clk 0:00:04.9]}
30... Qg7+ {[%clk 0:01:38.9]} 0-1

[Event "Early-Titled-Tuesday-Blitz-April-16-2024"]
[Site "Chess.com"]
[Date "2024.04.16"]
[Round "2"]
[White "sorch29"]
[Black "LubovMarkelova"]
[Result "1-0"]
[WhiteElo "2472"]
[BlackElo "2170"]
[TimeControl "180+1"]
[EndTime "8:15:42 PDT"]
[Termination "sorch29 won on time"]

1. c4 {[%clk 0:02:51]} 1... c6 {[%clk 0:02:43.2]} 2. Nf3 {[%clk 0:02:49.6]} 2...
d5 {[%clk 0:02:43.2]} 3. e3 {[%clk 0:02:50.3]} 3... Nf6 {[%clk 0:02:42.4]} 4.
Nc3 {[%clk 0:02:50.9]} 4... e6 {[%clk 0:02:40.6]} 5. b3 {[%clk 0:02:50]} 5...
Nbd7 {[%clk 0:02:40.7]} 6. Bb2 {[%clk 0:02:49.9]} 6... Bd6 {[%clk 0:02:39.7]} 7.
d4 {[%clk 0:02:49.8]} 7... O-O {[%clk 0:02:39.5]} 8. Bd3 {[%clk 0:02:49.9]} 8...
b6 {[%clk 0:02:29.9]} 9. O-O {[%clk 0:02:49.6]} 9... Bb7 {[%clk 0:02:30.4]} 10.
Qe2 {[%clk 0:02:49.8]} 10... Rc8 {[%clk 0:02:30]} 11. Rfd1 {[%clk 0:02:49.6]}
11... Qe7 {[%clk 0:02:25.5]} 12. Rac1 {[%clk 0:02:46.1]} 12... Rfd8 {[%clk
0:02:24.8]} 13. h3 {[%clk 0:02:30.4]} 13... h6 {[%clk 0:02:21.7]} 14. e4 {[%clk
0:02:27.2]} 14... dxe4 {[%clk 0:02:13.8]} 15. Bxe4 {[%clk 0:02:28.1]} 15... Nxe4
{[%clk 0:02:13.6]} 16. Nxe4 {[%clk 0:02:27.9]} 16... Ba3 {[%clk 0:02:10.8]} 17.
Bxa3 {[%clk 0:02:25.5]} 17... Qxa3 {[%clk 0:02:10.9]} 18. c5 {[%clk 0:02:21.9]}
18... bxc5 {[%clk 0:02:00.4]} 19. dxc5 {[%clk 0:02:22.3]} 19... Ba6 {[%clk
0:01:44.6]} 20. Qc2 {[%clk 0:02:21.3]} 20... Nf6 {[%clk 0:01:27.4]} 21. Nd6
{[%clk 0:02:20.4]} 21... Rb8 {[%clk 0:01:24.5]} 22. Ne5 {[%clk 0:02:17.9]} 22...
Bb5 {[%clk 0:00:44.9]} 23. Nexf7 {[%clk 0:02:16.1]} 23... Rf8 {[%clk 0:00:38.4]}
24. Qg6 {[%clk 0:02:16.3]} 24... Qxa2 {[%clk 0:00:21]} 25. Nxh6+ {[%clk
0:02:16.1]} 25... Kh8 {[%clk 0:00:21.3]} 26. Ndf7+ {[%clk 0:02:16.9]} 26... Rxf7
{[%clk 0:00:21.8]} 27. Nxf7+ {[%clk 0:02:17.7]} 27... Kg8 {[%clk 0:00:20.4]} 28.
Nh6+ {[%clk 0:02:18.4]} 28... Kh8 {[%clk 0:00:20.2]} 29. Nf7+ {[%clk 0:02:19.1]}
29... Kg8 {[%clk 0:00:20.6]} 30. Rc3 {[%clk 0:02:07.4]} 30... Qe2 {[%clk
0:00:19.4]} 31. Rdc1 {[%clk 0:01:58]} 31... Ne4 {[%clk 0:00:18]} 32. Rf3 {[%clk
0:01:53.6]} 32... Nd2 {[%clk 0:00:14.8]} 33. Rg3 {[%clk 0:01:47.3]} 1-0

[Event "Early-Titled-Tuesday-Blitz-April-16-2024"]
[Site "Chess.com"]
[Date "2024.04.16"]
[Round "2"]
[White "Evgeny81"]
[Black "ploxoi"]
[Result "1-0"]
[WhiteElo "2771"]
[BlackElo "2413"]
[TimeControl "180+1"]
[EndTime "8:15:44 PDT"]
[Termination "Evgeny81 won by resignation"]

1. e4 {[%clk 0:03:00.9]} 1... c5 {[%clk 0:02:59.2]} 2. Nf3 {[%clk 0:03:00.7]}
2... e6 {[%clk 0:02:59.8]} 3. d4 {[%clk 0:03:01.2]} 3... cxd4 {[%clk 0:03:00.7]}
4. Nxd4 {[%clk 0:03:01.7]} 4... Nc6 {[%clk 0:03:01.6]} 5. Nc3 {[%clk 0:03:00]}
5... Qc7 {[%clk 0:02:59]} 6. f4 {[%clk 0:03:00]} 6... a6 {[%clk 0:02:56.1]} 7.
Be3 {[%clk 0:02:58.9]} 7... d6 {[%clk 0:02:54.5]} 8. Qd2 {[%clk 0:02:58]} 8...
Nf6 {[%clk 0:02:54.4]} 9. O-O-O {[%clk 0:02:57.3]} 9... b5 {[%clk 0:02:54]} 10.
Bd3 {[%clk 0:02:54]} 10... Bb7 {[%clk 0:02:53.9]} 11. Rhe1 {[%clk 0:02:50.7]}
11... Be7 {[%clk 0:02:53.9]} 12. h3 {[%clk 0:02:50.1]} 12... h5 {[%clk
0:02:51.3]} 13. Kb1 {[%clk 0:02:47.6]} 13... Rc8 {[%clk 0:02:51.4]} 14. Bf2
{[%clk 0:02:39.2]} 14... Na5 {[%clk 0:02:31.7]} 15. e5 {[%clk 0:02:35.5]} 15...
dxe5 {[%clk 0:02:27.7]} 16. fxe5 {[%clk 0:02:33.3]} 16... Nd7 {[%clk 0:02:26]}
17. Nxe6 {[%clk 0:02:29.2]} 17... fxe6 {[%clk 0:02:21.6]} 18. Bg6+ {[%clk
0:02:29.3]} 18... Kd8 {[%clk 0:02:22.1]} 19. Bb6 {[%clk 0:02:29.5]} 19... Bc6
{[%clk 0:02:01.6]} 20. Bxc7+ {[%clk 0:02:19.7]} 20... Rxc7 {[%clk 0:02:02.5]}
21. Ne4 {[%clk 0:01:52.6]} 21... Nc4 {[%clk 0:02:00.6]} 22. Qf4 {[%clk
0:01:45.1]} 22... Rf8 {[%clk 0:01:49.6]} 23. Qg3 {[%clk 0:01:43.3]} 23... h4
{[%clk 0:01:49.1]} 24. Qg4 {[%clk 0:01:38.7]} 24... Bd5 {[%clk 0:01:46.3]} 25.
Ng5 {[%clk 0:01:32.3]} 25... Bxg5 {[%clk 0:01:36.1]} 26. Qxg5+ {[%clk
0:01:33.2]} 26... Kc8 {[%clk 0:01:36.7]} 27. Rxd5 {[%clk 0:01:18.2]} 27... exd5
{[%clk 0:01:34.6]} 28. e6 {[%clk 0:01:19.1]} 28... Rf2 {[%clk 0:00:31]} 29.
exd7+ {[%clk 0:01:15.7]} 29... Rxd7 {[%clk 0:00:31.9]} 30. Bf5 {[%clk
0:01:13.9]} 30... Nd2+ {[%clk 0:00:29.8]} 31. Kc1 {[%clk 0:01:13.2]} 1-0

[Event "Early-Titled-Tuesday-Blitz-April-16-2024"]
[Site "Chess.com"]
[Date "2024.04.16"]
[Round "2"]
[White "bazar-wokzal"]
[Black "Durarbayli"]
[Result "0-1"]
[WhiteElo "2585"]
[BlackElo "2882"]
[TimeControl "180+1"]
[EndTime "8:15:53 PDT"]
[Termination "Durarbayli won by resignation"]

1. e4 {[%clk 0:03:00.9]} 1... e5 {[%clk 0:03:00.3]} 2. Bc4 {[%clk 0:03:00.4]}
2... Nf6 {[%clk 0:02:59.3]} 3. d3 {[%clk 0:03:00.3]} 3... c6 {[%clk 0:02:59.3]}
4. Nf3 {[%clk 0:02:57.6]} 4... d5 {[%clk 0:02:59.4]} 5. Bb3 {[%clk 0:02:57.3]}
5... a5 {[%clk 0:03:00]} 6. Nc3 {[%clk 0:02:57]} 6... Bb4 {[%clk 0:02:50.5]} 7.
a3 {[%clk 0:02:55.4]} 7... Bxc3+ {[%clk 0:02:50.3]} 8. bxc3 {[%clk 0:02:56.3]}
8... a4 {[%clk 0:02:45.2]} 9. Ba2 {[%clk 0:02:56.1]} 9... Bg4 {[%clk 0:02:32.8]}
10. exd5 {[%clk 0:02:50.4]} 10... cxd5 {[%clk 0:02:31.3]} 11. h3 {[%clk
0:02:50.1]} 11... Bxf3 {[%clk 0:02:30.9]} 12. Qxf3 {[%clk 0:02:50.9]} 12... O-O
{[%clk 0:02:26.6]} 13. O-O {[%clk 0:02:45.6]} 13... Qa5 {[%clk 0:02:16.1]} 14.
Bd2 {[%clk 0:02:34.6]} 14... Nbd7 {[%clk 0:02:13.3]} 15. Qe2 {[%clk 0:02:14.2]}
15... Qc5 {[%clk 0:02:08.5]} 16. Rfb1 {[%clk 0:02:05]} 16... Rfb8 {[%clk
0:02:06]} 17. Rb4 {[%clk 0:02:04.4]} 17... b5 {[%clk 0:02:05.1]} 18. d4 {[%clk
0:01:58.8]} 18... exd4 {[%clk 0:02:00.8]} 19. Rxd4 {[%clk 0:01:50.1]} 19... Re8
{[%clk 0:01:54.6]} 20. Qf1 {[%clk 0:01:38]} 20... Nb6 {[%clk 0:01:43.1]} 21. Rb4
{[%clk 0:01:33]} 21... Nc4 {[%clk 0:01:42.8]} 22. Bc1 {[%clk 0:01:25.6]} 22...
Ne4 {[%clk 0:01:36.7]} 23. Bxc4 {[%clk 0:01:20.8]} 23... dxc4 {[%clk 0:01:34.4]}
24. Be3 {[%clk 0:01:20.9]} 24... Qf5 {[%clk 0:01:23.9]} 25. Bd4 {[%clk
0:01:20.4]} 25... Ra6 {[%clk 0:01:20.3]} 26. Rab1 {[%clk 0:01:19.8]} 26... Nd2
{[%clk 0:01:11.9]} 27. Rxb5 {[%clk 0:01:04.3]} 27... Qe4 {[%clk 0:01:03.4]} 28.
Qd1 {[%clk 0:00:51.2]} 28... Rg6 {[%clk 0:01:01.1]} 29. f3 {[%clk 0:00:35.6]}
29... Nxf3+ {[%clk 0:01:00.5]} 30. Kh1 {[%clk 0:00:35.5]} 30... Nxd4 {[%clk
0:00:58.2]} 0-1

[Event "Early-Titled-Tuesday-Blitz-April-16-2024"]
[Site "Chess.com"]
[Date "2024.04.16"]
[Round "2"]
[White "Jospem"]
[Black "SashaKuzhilniy"]
[Result "1-0"]
[WhiteElo "3079"]
[BlackElo "2641"]
[TimeControl "180+1"]
[EndTime "8:15:57 PDT"]
[Termination "Jospem won on time"]

1. e4 {[%clk 0:02:48.7]} 1... e5 {[%clk 0:03:00.1]} 2. Nf3 {[%clk 0:02:48.4]}
2... Nc6 {[%clk 0:03:00.6]} 3. Nc3 {[%clk 0:02:49.2]} 3... Nf6 {[%clk
0:03:01.1]} 4. h3 {[%clk 0:02:49.5]} 4... g6 {[%clk 0:03:01.1]} 5. Bc4 {[%clk
0:02:48.7]} 5... Bg7 {[%clk 0:02:59.1]} 6. d3 {[%clk 0:02:49]} 6... d6 {[%clk
0:02:53.3]} 7. Be3 {[%clk 0:02:49.5]} 7... a6 {[%clk 0:02:44.1]} 8. a3 {[%clk
0:02:47]} 8... Be6 {[%clk 0:02:40]} 9. Bxe6 {[%clk 0:02:47.2]} 9... fxe6 {[%clk
0:02:40.9]} 10. Ne2 {[%clk 0:02:47.8]} 10... O-O {[%clk 0:02:40.1]} 11. Ng3
{[%clk 0:02:48.4]} 11... Ne7 {[%clk 0:02:15.5]} 12. O-O {[%clk 0:02:47.2]} 12...
c5 {[%clk 0:02:15.6]} 13. b4 {[%clk 0:02:47.4]} 13... b6 {[%clk 0:02:14.8]} 14.
c3 {[%clk 0:02:47.7]} 14... Nc6 {[%clk 0:02:14.8]} 15. Rb1 {[%clk 0:02:46.5]}
15... Qd7 {[%clk 0:02:13.3]} 16. a4 {[%clk 0:02:36.1]} 16... cxb4 {[%clk
0:02:10.5]} 17. cxb4 {[%clk 0:02:37]} 17... b5 {[%clk 0:02:11.4]} 18. axb5
{[%clk 0:02:34.9]} 18... axb5 {[%clk 0:02:12.3]} 19. d4 {[%clk 0:02:28]} 19...
exd4 {[%clk 0:02:08.2]} 20. Nxd4 {[%clk 0:02:28.9]} 20... Ne5 {[%clk 0:02:06.6]}
21. Qe2 {[%clk 0:02:15.2]} 21... Nc4 {[%clk 0:02:04.4]} 22. Rfd1 {[%clk
0:02:15.5]} 22... Nxe3 {[%clk 0:02:02.5]} 23. Qxe3 {[%clk 0:02:13]} 23... Ne8
{[%clk 0:01:13.1]} 24. Nf3 {[%clk 0:01:36.8]} 24... Nc7 {[%clk 0:01:06]} 25.
Rbc1 {[%clk 0:01:24.1]} 25... Rfc8 {[%clk 0:00:59.6]} 26. h4 {[%clk 0:01:21.2]}
26... Na6 {[%clk 0:00:52.3]} 27. Rb1 {[%clk 0:01:21.2]} 27... Rc4 {[%clk
0:00:51.3]} 28. h5 {[%clk 0:01:21.9]} 28... Nxb4 {[%clk 0:00:27]} 29. hxg6
{[%clk 0:01:22.1]} 29... hxg6 {[%clk 0:00:25.8]} 30. Qg5 {[%clk 0:01:22.7]}
30... Qf7 {[%clk 0:00:21]} 31. Qxb5 {[%clk 0:01:21.8]} 1-0

[Event "Early-Titled-Tuesday-Blitz-April-16-2024"]
[Site "Chess.com"]
[Date "2024.04.16"]
[Round "2"]
[White "dianamirza"]
[Black "Flaccidmoves"]
[Result "0-1"]
[WhiteElo "1954"]
[BlackElo "2434"]
[TimeControl "180+1"]
[EndTime "8:15:57 PDT"]
[Termination "Flaccidmoves won by resignation"]

1. d4 {[%clk 0:02:58.9]} 1... g6 {[%clk 0:02:59.1]} 2. c4 {[%clk 0:02:51.7]}
2... Bg7 {[%clk 0:02:59.2]} 3. Nc3 {[%clk 0:02:41.8]} 3... c5 {[%clk 0:02:58.2]}
4. e3 {[%clk 0:02:26.7]} 4... Nf6 {[%clk 0:02:47.8]} 5. Nf3 {[%clk 0:02:14.9]}
5... O-O {[%clk 0:02:47.1]} 6. Be2 {[%clk 0:02:13.5]} 6... d6 {[%clk 0:02:45.1]}
7. O-O {[%clk 0:02:07.6]} 7... Nc6 {[%clk 0:02:06.8]} 8. d5 {[%clk 0:01:47.9]}
8... Ne5 {[%clk 0:02:06.1]} 9. Nxe5 {[%clk 0:01:44.4]} 9... dxe5 {[%clk
0:02:07]} 10. e4 {[%clk 0:01:32.8]} 10... Ne8 {[%clk 0:02:06.8]} 11. Be3 {[%clk
0:01:19]} 11... b6 {[%clk 0:02:06.1]} 12. Qd2 {[%clk 0:01:10.1]} 12... Nd6
{[%clk 0:02:05.2]} 13. Bh6 {[%clk 0:01:07.4]} 13... f5 {[%clk 0:01:50.5]} 14.
Bxg7 {[%clk 0:01:01]} 14... Kxg7 {[%clk 0:01:51.4]} 15. f3 {[%clk 0:00:51.9]}
15... f4 {[%clk 0:01:46.4]} 16. a4 {[%clk 0:00:33.2]} 16... a5 {[%clk
0:01:37.7]} 17. Nb5 {[%clk 0:00:26.5]} 17... Bd7 {[%clk 0:01:24.7]} 18. g3
{[%clk 0:00:20.9]} 18... Bxb5 {[%clk 0:01:22]} 19. axb5 {[%clk 0:00:20.9]} 19...
g5 {[%clk 0:01:04.9]} 20. gxf4 {[%clk 0:00:20.2]} 20... gxf4 {[%clk 0:01:04.5]}
21. Kf2 {[%clk 0:00:20.7]} 21... Kf6 {[%clk 0:01:00.5]} 22. Rg1 {[%clk
0:00:21.3]} 22... Rg8 {[%clk 0:00:49.9]} 23. Rg4 {[%clk 0:00:21.7]} 23... Rxg4
{[%clk 0:00:48.4]} 24. fxg4 {[%clk 0:00:22.6]} 24... Nxe4+ {[%clk 0:00:48.9]}
0-1

[Event "Early-Titled-Tuesday-Blitz-April-16-2024"]
[Site "Chess.com"]
[Date "2024.04.16"]
[Round "2"]
[White "Lukianoo"]
[Black "imdvb6307"]
[Result "1-0"]
[WhiteElo "2847"]
[BlackElo "2527"]
[TimeControl "180+1"]
[EndTime "8:15:58 PDT"]
[Termination "Lukianoo won on time"]

1. e4 {[%clk 0:03:00.9]} 1... Nc6 {[%clk 0:02:54.3]} 2. d4 {[%clk 0:03:00.7]}
2... d5 {[%clk 0:02:53.7]} 3. e5 {[%clk 0:02:59.5]} 3... Bf5 {[%clk 0:02:53.3]}
4. c3 {[%clk 0:02:58.9]} 4... e6 {[%clk 0:02:53.4]} 5. h4 {[%clk 0:02:57.5]}
5... f6 {[%clk 0:02:47.5]} 6. g4 {[%clk 0:02:53.3]} 6... Be4 {[%clk 0:02:42.1]}
7. f3 {[%clk 0:02:53.3]} 7... Bxb1 {[%clk 0:02:42.1]} 8. Rxb1 {[%clk 0:02:52.3]}
8... fxe5 {[%clk 0:02:42.3]} 9. Ne2 {[%clk 0:02:50.3]} 9... Be7 {[%clk
0:02:41.6]} 10. g5 {[%clk 0:02:49.3]} 10... Bd6 {[%clk 0:02:30.9]} 11. Bh3
{[%clk 0:02:47.8]} 11... Qd7 {[%clk 0:02:20.5]} 12. b4 {[%clk 0:02:47.2]} 12...
Nge7 {[%clk 0:02:17.7]} 13. b5 {[%clk 0:02:46.7]} 13... Na5 {[%clk 0:02:17.2]}
14. dxe5 {[%clk 0:02:44.5]} 14... Bxe5 {[%clk 0:02:16.1]} 15. f4 {[%clk
0:02:44.3]} 15... Bd6 {[%clk 0:02:14.8]} 16. Nd4 {[%clk 0:02:43.7]} 16... Nf5
{[%clk 0:02:10.3]} 17. O-O {[%clk 0:02:39.3]} 17... Bc5 {[%clk 0:02:05.1]} 18.
Kh2 {[%clk 0:02:35.8]} 18... Bxd4 {[%clk 0:02:04.8]} 19. cxd4 {[%clk 0:02:36.5]}
19... O-O {[%clk 0:02:03.8]} 20. Ba3 {[%clk 0:02:31.2]} 20... Rf7 {[%clk
0:01:51.1]} 21. Qe2 {[%clk 0:02:26.1]} 21... Nc4 {[%clk 0:01:50.4]} 22. Bb2
{[%clk 0:02:25]} 22... Ncd6 {[%clk 0:01:12.9]} 23. h5 {[%clk 0:02:20.7]} 23...
Ne4 {[%clk 0:01:10.7]} 24. Rf3 {[%clk 0:02:19.6]} 24... Nfd6 {[%clk 0:01:07.1]}
25. Ba1 {[%clk 0:02:17.1]} 25... Raf8 {[%clk 0:01:05.6]} 26. Rbf1 {[%clk
0:02:16.2]} 26... Re7 {[%clk 0:01:02.7]} 27. a4 {[%clk 0:02:13.7]} 27... Nc4
{[%clk 0:00:58.1]} 28. f5 {[%clk 0:02:04.8]} 28... exf5 {[%clk 0:00:54.2]} 29.
Bxf5 {[%clk 0:02:01.1]} 29... Qd6+ {[%clk 0:00:54.4]} 30. Kg2 {[%clk 0:01:59.2]}
30... Ng3 {[%clk 0:00:36.2]} 31. Be6+ {[%clk 0:01:55.7]} 31... Rff7 {[%clk
0:00:18.9]} 32. Rxf7 {[%clk 0:01:55.1]} 32... Nxf1 {[%clk 0:00:11.1]} 33. Rxe7+
{[%clk 0:01:53.2]} 33... Kf8 {[%clk 0:00:11.4]} 34. Rf7+ {[%clk 0:01:51]} 34...
Ke8 {[%clk 0:00:11.6]} 35. Rxf1 {[%clk 0:01:46.8]} 35... Qe7 {[%clk 0:00:02.4]}
36. Bf7+ {[%clk 0:01:44.1]} 36... Kd8 {[%clk 0:00:02.6]} 37. Qxe7+ {[%clk
0:01:44.2]} 37... Kxe7 {[%clk 0:00:02.8]} 38. g6 {[%clk 0:01:42.8]} 38... Ne3+
{[%clk 0:00:02.3]} 39. Kf2 {[%clk 0:01:42.7]} 1-0

[Event "Early-Titled-Tuesday-Blitz-April-16-2024"]
[Site "Chess.com"]
[Date "2024.04.16"]
[Round "2"]
[White "Klendi"]
[Black "campochess"]
[Result "0-1"]
[WhiteElo "2463"]
[BlackElo "2214"]
[TimeControl "180+1"]
[EndTime "8:16:02 PDT"]
[Termination "campochess won by resignation"]

1. e4 {[%clk 0:02:53.6]} 1... c5 {[%clk 0:02:58.9]} 2. c3 {[%clk 0:02:51.4]}
2... Nc6 {[%clk 0:02:55]} 3. d4 {[%clk 0:02:51.1]} 3... cxd4 {[%clk 0:02:55]} 4.
cxd4 {[%clk 0:02:52]} 4... d6 {[%clk 0:02:54.5]} 5. Nc3 {[%clk 0:02:50.7]} 5...
Nf6 {[%clk 0:02:53.5]} 6. h3 {[%clk 0:02:50.3]} 6... e5 {[%clk 0:02:43.6]} 7. d5
{[%clk 0:02:49.6]} 7... Ne7 {[%clk 0:02:42.1]} 8. f4 {[%clk 0:02:48.3]} 8...
exf4 {[%clk 0:02:41.1]} 9. Bxf4 {[%clk 0:02:48.2]} 9... Ng6 {[%clk 0:02:40.7]}
10. Be3 {[%clk 0:02:45.8]} 10... Be7 {[%clk 0:02:38.4]} 11. Nf3 {[%clk
0:02:45.6]} 11... O-O {[%clk 0:02:36.6]} 12. Bd3 {[%clk 0:02:46.2]} 12... a6
{[%clk 0:02:23.3]} 13. O-O {[%clk 0:02:46.5]} 13... b5 {[%clk 0:02:23]} 14. Nd4
{[%clk 0:02:46.7]} 14... Bd7 {[%clk 0:02:21.9]} 15. Rc1 {[%clk 0:02:35.2]} 15...
b4 {[%clk 0:02:19.9]} 16. Nce2 {[%clk 0:02:33.7]} 16... Ne5 {[%clk 0:02:18.7]}
17. Nc6 {[%clk 0:02:31.9]} 17... Bxc6 {[%clk 0:02:17.4]} 18. dxc6 {[%clk
0:02:32.8]} 18... Nxd3 {[%clk 0:02:12.3]} 19. Qxd3 {[%clk 0:02:32.4]} 19... d5
{[%clk 0:02:12.3]} 20. e5 {[%clk 0:02:25.3]} 20... Ne4 {[%clk 0:02:10.9]} 21.
Nf4 {[%clk 0:02:24.6]} 21... Bg5 {[%clk 0:01:56.5]} 22. Qxd5 {[%clk 0:02:20.7]}
22... Ng3 {[%clk 0:01:51.3]} 23. Qxd8 {[%clk 0:02:07.9]} 23... Rfxd8 {[%clk
0:01:48.2]} 24. Rfe1 {[%clk 0:02:07.7]} 24... Nf5 {[%clk 0:01:45.1]} 25. Nd5
{[%clk 0:01:55.6]} 25... Nxe3 {[%clk 0:01:36.2]} 26. Nxe3 {[%clk 0:01:55.6]}
26... Rd3 {[%clk 0:01:36]} 27. Kf2 {[%clk 0:01:52.3]} 27... Re8 {[%clk 0:01:34]}
28. c7 {[%clk 0:01:49.4]} 28... Rc8 {[%clk 0:01:27.7]} 29. Kf3 {[%clk
0:01:40.7]} 29... Rd7 {[%clk 0:01:20.4]} 30. Rc6 {[%clk 0:01:35.4]} 30... Rdxc7
{[%clk 0:01:18.6]} 31. Rxa6 {[%clk 0:01:33.2]} 31... g6 {[%clk 0:01:11.9]} 32.
Rd1 {[%clk 0:01:32.5]} 32... Bxe3 {[%clk 0:01:08.3]} 33. Kxe3 {[%clk 0:01:32.5]}
33... Re7 {[%clk 0:01:08.3]} 34. Ke4 {[%clk 0:01:30.9]} 34... Rc5 {[%clk
0:01:07.8]} 35. Rd5 {[%clk 0:01:30]} 35... Rc2 {[%clk 0:01:04.5]} 36. b3 {[%clk
0:01:17.7]} 36... Rxg2 {[%clk 0:01:03.4]} 37. Rb5 {[%clk 0:01:17.7]} 37... Rh2
{[%clk 0:00:58.4]} 38. Rxb4 {[%clk 0:01:14.4]} 38... Re2+ {[%clk 0:00:57.7]} 39.
Kf3 {[%clk 0:01:14.6]} 39... R7xe5 {[%clk 0:00:57.7]} 40. Rf4 {[%clk 0:01:06]}
40... R5e3+ {[%clk 0:00:54.8]} 41. Kg4 {[%clk 0:01:04.5]} 41... Rg2+ {[%clk
0:00:52.1]} 42. Kh4 {[%clk 0:01:04.7]} 42... g5+ {[%clk 0:00:51]} 43. Kh5 {[%clk
0:01:03.7]} 43... gxf4 {[%clk 0:00:50.3]} 44. Kh6 {[%clk 0:01:04.3]} 44... Rg6+
{[%clk 0:00:49.5]} 0-1